[Event "Titled Tuesday Blitz November 14 Early 2023"]
[White "Osmak, Yuliia"]
[Black "Galchenko, Matvey"]
[WhiteFideId "14101602"]
[BlackFideId "24175480"]
[WhiteElo "2516"]
[BlackElo "2954"]
[Result "1-0"]
[Round "1"]
[TimeControl "180+1"]
[Date "2023.11.14"]
[WhiteClock "0:00:33"]
[BlackClock "0:00:01"]
[Board "31"]

1. e4 {[%clk 0:03:00]}  e6 {[%clk 0:02:58]} 2. d4 {[%clk 0:03:00]}  d5 {[%clk 0:02:58]} 3. exd5 {[%clk 0:03:01]}  exd5 {[%clk 0:02:59]} 4. Nf3 {[%clk 0:02:57]}  Nf6 {[%clk 0:02:59]} 5. Bd3 {[%clk 0:02:57]}  c5 {[%clk 0:02:59]} 6. O-O {[%clk 0:02:50]}  Nc6 {[%clk 0:02:58]} 7. Re1+ {[%clk 0:02:49]}  Be7 {[%clk 0:02:58]} 8. dxc5 {[%clk 0:02:49]}  O-O {[%clk 0:02:58]} 9. a3 {[%clk 0:02:46]}  Bxc5 {[%clk 0:02:44]} 10. b4 {[%clk 0:02:45]}  Bb6 {[%clk 0:02:44]} 11. Nbd2 {[%clk 0:02:38]}  Ng4 {[%clk 0:02:13]} 12. Re2 {[%clk 0:02:30]}  Nd4 {[%clk 0:02:01]} 13. Nxd4 {[%clk 0:02:24]}  Bxd4 {[%clk 0:02:02]} 14. Rb1 {[%clk 0:02:19]}  Qh4 {[%clk 0:01:44]} 15. Nf3 {[%clk 0:02:16]}  Nxf2 {[%clk 0:01:35]} 16. Bxh7+ {[%clk 0:02:03]}  Qxh7 {[%clk 0:01:23]} 17. Qxd4 {[%clk 0:02:03]}  Ne4 {[%clk 0:01:21]} 18. Bb2 {[%clk 0:02:01]}  Be6 {[%clk 0:01:17]} 19. Rf1 {[%clk 0:01:35]}  a5 {[%clk 0:01:12]} 20. c4 {[%clk 0:01:33]}  Rad8 {[%clk 0:01:08]} 21. c5 {[%clk 0:01:28]}  axb4 {[%clk 0:01:07]} 22. axb4 {[%clk 0:01:28]}  Bd7 {[%clk 0:01:01]} 23. Qxd5 {[%clk 0:01:19]}  Bc6 {[%clk 0:00:56]} 24. Qc4 {[%clk 0:01:15]}  Bd5 {[%clk 0:00:50]} 25. Qc2 {[%clk 0:01:12]}  Rfe8 {[%clk 0:00:46]} 26. Rfe1 {[%clk 0:01:12]}  Qf5 {[%clk 0:00:41]} 27. Nd4 {[%clk 0:01:08]}  Qg4 {[%clk 0:00:36]} 28. Nb5 {[%clk 0:01:02]}  Bc6 {[%clk 0:00:29]} 29. Nd4 {[%clk 0:00:50]}  Bd5 {[%clk 0:00:26]} 30. b5 {[%clk 0:00:47]}  Rc8 {[%clk 0:00:23]} 31. c6 {[%clk 0:00:47]}  bxc6 {[%clk 0:00:24]} 32. Nxc6 {[%clk 0:00:45]}  Qf5 {[%clk 0:00:10]} 33. Qd3 {[%clk 0:00:39]}  Bxc6 {[%clk 0:00:09]} 34. bxc6 {[%clk 0:00:39]}  Qc5+ {[%clk 0:00:08]} 35. Bd4 {[%clk 0:00:36]}  Qxc6 {[%clk 0:00:02]} 36. Rxe4 {[%clk 0:00:36]}  Red8 {[%clk 0:00:02]} 37. Qg3 {[%clk 0:00:35]}  Qh6 {[%clk 0:00:02]} 38. Rg4 {[%clk 0:00:33]}  g6 {[%clk 0:00:01]} 39. Rh4 {[%clk 0:00:33]} 1-0


[Site "https://www.chess.com"]

[Event "Titled Tuesday Blitz November 14 Early 2023"]
[White "Molenda, Marcin"]
[Black "Sjugirov, Sanan"]
[WhiteFideId "1173065"]
[BlackFideId "4189302"]
[WhiteElo "2514"]
[BlackElo "2943"]
[Result "1-0"]
[Round "1"]
[TimeControl "180+1"]
[Date "2023.11.14"]
[WhiteClock "0:00:03"]
[BlackClock "0:00:00"]
[Board "33"]

1. e4 {[%clk 0:03:00]}  e5 {[%clk 0:02:52]} 2. Nf3 {[%clk 0:02:57]}  Nc6 {[%clk 0:02:53]} 3. Bb5 {[%clk 0:02:54]}  a6 {[%clk 0:02:52]} 4. Ba4 {[%clk 0:02:52]}  Nf6 {[%clk 0:02:52]} 5. O-O {[%clk 0:02:51]}  d6 {[%clk 0:02:50]} 6. Re1 {[%clk 0:02:50]}  Bd7 {[%clk 0:02:50]} 7. c4 {[%clk 0:02:50]}  g6 {[%clk 0:02:48]} 8. Nc3 {[%clk 0:02:50]}  Bg7 {[%clk 0:02:47]} 9. Bxc6 {[%clk 0:02:51]}  bxc6 {[%clk 0:02:45]} 10. d4 {[%clk 0:02:51]}  exd4 {[%clk 0:02:43]} 11. Nxd4 {[%clk 0:02:52]}  O-O {[%clk 0:02:42]} 12. Bf4 {[%clk 0:02:51]}  Re8 {[%clk 0:02:39]} 13. Qd2 {[%clk 0:02:51]}  c5 {[%clk 0:02:31]} 14. Nc2 {[%clk 0:02:47]}  Bc6 {[%clk 0:02:30]} 15. f3 {[%clk 0:02:47]}  Nd7 {[%clk 0:02:08]} 16. Rad1 {[%clk 0:02:37]}  Rb8 {[%clk 0:02:06]} 17. b3 {[%clk 0:02:37]}  Qf6 {[%clk 0:02:01]} 18. Nd5 {[%clk 0:02:32]}  Bxd5 {[%clk 0:01:59]} 19. cxd5 {[%clk 0:02:22]}  a5 {[%clk 0:01:50]} 20. Bg5 {[%clk 0:02:11]}  Qc3 {[%clk 0:01:50]} 21. Qxc3 {[%clk 0:02:01]}  Bxc3 {[%clk 0:01:50]} 22. Re3 {[%clk 0:02:01]}  Bg7 {[%clk 0:01:48]} 23. a4 {[%clk 0:02:01]}  Rb7 {[%clk 0:01:38]} 24. Red3 {[%clk 0:01:16]}  Reb8 {[%clk 0:01:34]} 25. Bd2 {[%clk 0:01:16]}  Ne5 {[%clk 0:01:17]} 26. Rc3 {[%clk 0:01:06]}  f5 {[%clk 0:01:07]} 27. exf5 {[%clk 0:01:06]}  gxf5 {[%clk 0:01:08]} 28. Na3 {[%clk 0:00:29]}  Rxb3 {[%clk 0:01:05]} 29. Nb5 {[%clk 0:00:28]}  Rb4 {[%clk 0:00:32]} 30. Ra3 {[%clk 0:00:20]}  Nc4 {[%clk 0:00:32]} 31. Bxb4 {[%clk 0:00:20]}  axb4 {[%clk 0:00:33]} 32. Rb3 {[%clk 0:00:15]}  Na5 {[%clk 0:00:30]} 33. Rbb1 {[%clk 0:00:15]}  b3 {[%clk 0:00:28]} 34. Kf1 {[%clk 0:00:10]}  c4 {[%clk 0:00:21]} 35. Rdc1 {[%clk 0:00:10]}  b2 {[%clk 0:00:19]} 36. Rc2 {[%clk 0:00:10]}  Nb3 {[%clk 0:00:15]} 37. Ke1 {[%clk 0:00:08]}  c3 {[%clk 0:00:09]} 38. Nxc3 {[%clk 0:00:07]}  Na1 {[%clk 0:00:08]} 39. Kd2 {[%clk 0:00:05]}  Nxc2 {[%clk 0:00:03]} 40. Kxc2 {[%clk 0:00:06]}  Rb4 {[%clk 0:00:02]} 41. Rxb2 {[%clk 0:00:06]}  Rc4 {[%clk 0:00:03]} 42. Rb3 {[%clk 0:00:06]}  Kf7 {[%clk 0:00:02]} 43. Kd3 {[%clk 0:00:06]}  Rc5 {[%clk 0:00:02]} 44. Ra3 {[%clk 0:00:03]}  Bxc3 {[%clk 0:00:01]} 45. Rxc3 {[%clk 0:00:03]}  Rxd5+ {[%clk 0:00:01]} 46. Kc4 {[%clk 0:00:03]}  Rc5+ {[%clk 0:00:00]} 47. Kb3 {[%clk 0:00:03]} 1-0


[Site "https://www.chess.com"]

[Event "Titled Tuesday Blitz November 14 Early 2023"]
[White "Hnydiuk, Aleksander"]
[Black "Elsa167"]
[WhiteFideId "1109057"]
[WhiteElo "2509"]
[BlackElo "2930"]
[Result "1-0"]
[Round "1"]
[TimeControl "180+1"]
[Date "2023.11.14"]
[WhiteClock "0:01:04"]
[BlackClock "0:01:18"]
[Board "37"]

1. e4 {[%clk 0:03:00]}  e6 {[%clk 0:03:00]} 2. d4 {[%clk 0:03:01]}  d5 {[%clk 0:03:00]} 3. Nc3 {[%clk 0:03:01]}  Bb4 {[%clk 0:03:00]} 4. a3 {[%clk 0:03:01]}  Bxc3+ {[%clk 0:03:00]} 5. bxc3 {[%clk 0:03:02]}  dxe4 {[%clk 0:03:00]} 6. Qg4 {[%clk 0:03:01]}  Nf6 {[%clk 0:03:01]} 7. Qxg7 {[%clk 0:03:02]}  Rg8 {[%clk 0:03:01]} 8. Qh6 {[%clk 0:03:03]}  c5 {[%clk 0:03:02]} 9. Ne2 {[%clk 0:02:57]}  cxd4 {[%clk 0:03:01]} 10. cxd4 {[%clk 0:02:57]}  Nc6 {[%clk 0:03:02]} 11. Bb2 {[%clk 0:02:32]}  Rg6 {[%clk 0:02:58]} 12. Qd2 {[%clk 0:02:29]}  Bd7 {[%clk 0:02:54]} 13. Nf4 {[%clk 0:02:27]}  Rg8 {[%clk 0:02:46]} 14. Be2 {[%clk 0:02:26]}  Ne7 {[%clk 0:02:38]} 15. c4 {[%clk 0:02:22]}  Ng6 {[%clk 0:02:34]} 16. O-O {[%clk 0:02:16]}  Nh4 {[%clk 0:02:26]} 17. Kh1 {[%clk 0:02:12]}  Ng4 {[%clk 0:02:08]} 18. h3 {[%clk 0:01:34]}  Qg5 {[%clk 0:01:51]} 19. Bxg4 {[%clk 0:01:26]}  f5 {[%clk 0:01:42]} 20. Bh5+ {[%clk 0:01:20]}  Kd8 {[%clk 0:01:30]} 21. g3 {[%clk 0:01:18]}  Nf3 {[%clk 0:01:25]} 22. Bxf3 {[%clk 0:01:16]}  exf3 {[%clk 0:01:26]} 23. d5 {[%clk 0:01:13]}  exd5 {[%clk 0:01:23]} 24. cxd5 {[%clk 0:01:07]}  Rg6 {[%clk 0:01:19]} 25. Ne6+ {[%clk 0:01:04]}  Bxe6 {[%clk 0:01:18]} 26. Qxg5+ {[%clk 0:01:04]}  Rxg5 {[%clk 0:01:18]} 27. Bf6+ {[%clk 0:01:05]}  Kd7 {[%clk 0:01:18]} 28. Bxg5 {[%clk 0:01:04]}  Bxd5 {[%clk 0:01:18]} 1-0


[Site "https://www.chess.com"]

[Event "Titled Tuesday Blitz November 14 Early 2023"]
[White "Shubin, Kirill"]
[Black "Baches Garcia, Guillermo"]
[WhiteFideId "34119962"]
[BlackFideId "2209764"]
[WhiteElo "2918"]
[BlackElo "2506"]
[Result "0-1"]
[Round "1"]
[TimeControl "180+1"]
[Date "2023.11.14"]
[WhiteClock "0:00:02"]
[BlackClock "0:00:05"]
[Board "40"]

1. e4 {[%clk 0:03:00]}  d5 {[%clk 0:03:00]} 2. exd5 {[%clk 0:03:00]}  Qxd5 {[%clk 0:03:01]} 3. Nc3 {[%clk 0:03:01]}  Qa5 {[%clk 0:03:01]} 4. d4 {[%clk 0:02:59]}  Nf6 {[%clk 0:03:01]} 5. Bc4 {[%clk 0:02:58]}  Bg4 {[%clk 0:03:00]} 6. Nf3 {[%clk 0:02:53]}  Nc6 {[%clk 0:02:55]} 7. h3 {[%clk 0:02:52]}  Qh5 {[%clk 0:02:51]} 8. d5 {[%clk 0:02:28]}  O-O-O {[%clk 0:02:38]} 9. Be2 {[%clk 0:01:58]}  Nxd5 {[%clk 0:02:29]} 10. Nxd5 {[%clk 0:01:54]}  Rxd5 {[%clk 0:02:24]} 11. Bd2 {[%clk 0:01:54]}  e5 {[%clk 0:02:07]} 12. O-O {[%clk 0:01:54]}  Bxh3 {[%clk 0:02:05]} 13. gxh3 {[%clk 0:01:52]}  Qxh3 {[%clk 0:01:24]} 14. Ng5 {[%clk 0:01:10]}  Qh4 {[%clk 0:01:23]} 15. Nxf7 {[%clk 0:01:03]}  Bc5 {[%clk 0:01:16]} 16. Kg2 {[%clk 0:00:50]}  Rf8 {[%clk 0:01:04]} 17. Bg4+ {[%clk 0:00:29]}  Kb8 {[%clk 0:01:03]} 18. Be6 {[%clk 0:00:29]}  Rd4 {[%clk 0:00:39]} 19. c3 {[%clk 0:00:28]}  Rxd2 {[%clk 0:00:29]} 20. Qxd2 {[%clk 0:00:25]}  Rxf7 {[%clk 0:00:29]} 21. Qd3 {[%clk 0:00:18]}  Rf6 {[%clk 0:00:27]} 22. Bh3 {[%clk 0:00:15]}  Rg6+ {[%clk 0:00:22]} 23. Kh1 {[%clk 0:00:12]}  e4 {[%clk 0:00:19]} 24. Qd7 {[%clk 0:00:12]}  a5 {[%clk 0:00:14]} 25. Rae1 {[%clk 0:00:10]}  Ne5 {[%clk 0:00:14]} 26. Qf5 {[%clk 0:00:10]}  Nf3 {[%clk 0:00:13]} 27. Rxe4 {[%clk 0:00:10]}  Qxf2 {[%clk 0:00:08]} 28. Re8+ {[%clk 0:00:05]}  Ka7 {[%clk 0:00:07]} 29. Rxf2 {[%clk 0:00:02]}  Rg1# {[%clk 0:00:05]} 0-1


[Site "https://www.chess.com"]

[Event "Titled Tuesday Blitz November 14 Early 2023"]
[White "Rustemov, Alexander"]
[Black "Chernomordik, Pavel"]
[WhiteFideId "4119002"]
[BlackFideId "2804530"]
[WhiteElo "2915"]
[BlackElo "2505"]
[Result "1-0"]
[Round "1"]
[TimeControl "180+1"]
[Date "2023.11.14"]
[WhiteClock "0:01:03"]
[BlackClock "0:00:03"]
[Board "42"]

1. d4 {[%clk 0:03:00]}  g6 {[%clk 0:02:47]} 2. c4 {[%clk 0:03:00]}  Bg7 {[%clk 0:02:47]} 3. Nf3 {[%clk 0:03:00]}  d6 {[%clk 0:02:47]} 4. g3 {[%clk 0:02:59]}  Nf6 {[%clk 0:02:46]} 5. Bg2 {[%clk 0:02:59]}  O-O {[%clk 0:02:47]} 6. Nc3 {[%clk 0:02:59]}  c6 {[%clk 0:02:47]} 7. O-O {[%clk 0:02:59]}  a6 {[%clk 0:02:47]} 8. e4 {[%clk 0:02:57]}  Nfd7 {[%clk 0:02:46]} 9. Be3 {[%clk 0:02:51]}  b5 {[%clk 0:02:45]} 10. c5 {[%clk 0:02:51]}  a5 {[%clk 0:02:40]} 11. a3 {[%clk 0:02:48]}  Bb7 {[%clk 0:02:17]} 12. Qc2 {[%clk 0:02:43]}  Na6 {[%clk 0:02:15]} 13. Rab1 {[%clk 0:02:31]}  dxc5 {[%clk 0:01:54]} 14. dxc5 {[%clk 0:02:31]}  Naxc5 {[%clk 0:01:53]} 15. Rfd1 {[%clk 0:02:16]}  Ne6 {[%clk 0:01:43]} 16. Nd4 {[%clk 0:02:07]}  Nxd4 {[%clk 0:01:38]} 17. Bxd4 {[%clk 0:02:08]}  Bxd4 {[%clk 0:01:37]} 18. Rxd4 {[%clk 0:02:08]}  e5 {[%clk 0:01:37]} 19. Rd2 {[%clk 0:02:04]}  Qe7 {[%clk 0:01:36]} 20. Rbd1 {[%clk 0:01:56]}  Nb6 {[%clk 0:01:34]} 21. Bf1 {[%clk 0:01:50]}  Rfd8 {[%clk 0:01:26]} 22. Na2 {[%clk 0:01:34]}  Rxd2 {[%clk 0:01:22]} 23. Qxd2 {[%clk 0:01:33]}  Qe6 {[%clk 0:01:16]} 24. Nc1 {[%clk 0:01:28]}  c5 {[%clk 0:01:07]} 25. f3 {[%clk 0:01:25]}  c4 {[%clk 0:01:04]} 26. Qd6 {[%clk 0:01:23]}  Na4 {[%clk 0:00:48]} 27. Qxe6 {[%clk 0:01:19]}  fxe6 {[%clk 0:00:47]} 28. b3 {[%clk 0:01:12]}  cxb3 {[%clk 0:00:40]} 29. Nxb3 {[%clk 0:01:13]}  Nc3 {[%clk 0:00:30]} 30. Rd7 {[%clk 0:01:13]}  Ba6 {[%clk 0:00:24]} 31. Nxa5 {[%clk 0:01:11]}  Bc8 {[%clk 0:00:12]} 32. Rd8+ {[%clk 0:01:08]}  Kf7 {[%clk 0:00:12]} 33. Nc6 {[%clk 0:01:08]}  Bb7 {[%clk 0:00:03]} 34. Rd7+ {[%clk 0:01:03]} 1-0


[Site "https://www.chess.com"]

[Event "Titled Tuesday Blitz November 14 Early 2023"]
[White "Kanyamarala, Trisha"]
[Black "Sychev, Klementy"]
[WhiteFideId "45004722"]
[BlackFideId "4114060"]
[WhiteElo "2505"]
[BlackElo "2898"]
[Result "0-1"]
[Round "1"]
[TimeControl "180+1"]
[Date "2023.11.14"]
[WhiteClock "0:00:11"]
[BlackClock "0:00:15"]
[Board "45"]

1. c4 {[%clk 0:02:56]}  g6 {[%clk 0:02:55]} 2. Nc3 {[%clk 0:02:56]}  Bg7 {[%clk 0:02:55]} 3. d3 {[%clk 0:02:56]}  c5 {[%clk 0:02:51]} 4. Nf3 {[%clk 0:02:56]}  Nc6 {[%clk 0:02:51]} 5. g3 {[%clk 0:02:56]}  e6 {[%clk 0:02:50]} 6. Bg2 {[%clk 0:02:56]}  Nge7 {[%clk 0:02:50]} 7. O-O {[%clk 0:02:56]}  O-O {[%clk 0:02:50]} 8. a3 {[%clk 0:02:47]}  d5 {[%clk 0:02:49]} 9. Rb1 {[%clk 0:02:44]}  b6 {[%clk 0:02:43]} 10. Bd2 {[%clk 0:02:41]}  a5 {[%clk 0:02:37]} 11. Qc2 {[%clk 0:02:16]}  d4 {[%clk 0:02:30]} 12. Na4 {[%clk 0:02:09]}  Qd6 {[%clk 0:02:26]} 13. b4 {[%clk 0:02:04]}  axb4 {[%clk 0:02:25]} 14. axb4 {[%clk 0:02:05]}  cxb4 {[%clk 0:02:07]} 15. Nxb6 {[%clk 0:02:02]}  Ra5 {[%clk 0:01:57]} 16. Rfc1 {[%clk 0:01:49]}  Qc5 {[%clk 0:01:49]} 17. Na4 {[%clk 0:01:41]}  Qa7 {[%clk 0:01:47]} 18. Nb2 {[%clk 0:01:38]}  Bd7 {[%clk 0:01:38]} 19. e3 {[%clk 0:01:19]}  Rb8 {[%clk 0:01:28]} 20. c5 {[%clk 0:01:03]}  Nd5 {[%clk 0:01:22]} 21. exd4 {[%clk 0:01:02]}  Nxd4 {[%clk 0:01:19]} 22. Nxd4 {[%clk 0:01:02]}  Bxd4 {[%clk 0:01:20]} 23. c6 {[%clk 0:00:57]}  Rc5 {[%clk 0:01:15]} 24. Nc4 {[%clk 0:00:54]}  Bxc6 {[%clk 0:00:54]} 25. Qd1 {[%clk 0:00:53]}  Bxf2+ {[%clk 0:00:51]} 26. Kh1 {[%clk 0:00:50]}  Bd4 {[%clk 0:00:45]} 27. Qg4 {[%clk 0:00:45]}  Bg7 {[%clk 0:00:39]} 28. d4 {[%clk 0:00:32]}  Rcb5 {[%clk 0:00:35]} 29. Nd6 {[%clk 0:00:31]}  R5b6 {[%clk 0:00:34]} 30. Ra1 {[%clk 0:00:23]}  Qd7 {[%clk 0:00:25]} 31. Nc4 {[%clk 0:00:23]}  Nf6 {[%clk 0:00:24]} 32. Nxb6 {[%clk 0:00:21]}  Rxb6 {[%clk 0:00:15]} 33. Bxc6 {[%clk 0:00:19]}  Rxc6 {[%clk 0:00:15]} 34. Ra8+ {[%clk 0:00:17]}  Bf8 {[%clk 0:00:14]} 35. Qd1 {[%clk 0:00:15]}  Rxc1 {[%clk 0:00:12]} 36. Qxc1 {[%clk 0:00:14]}  Qd5+ {[%clk 0:00:12]} 37. Kg1 {[%clk 0:00:11]}  Qxa8 {[%clk 0:00:12]} 38. Qc7 {[%clk 0:00:08]}  Nd5 {[%clk 0:00:11]} 39. Qe5 {[%clk 0:00:08]}  b3 {[%clk 0:00:11]} 40. Bc1 {[%clk 0:00:08]}  Qc6 {[%clk 0:00:10]} 41. Ba3 {[%clk 0:00:07]}  Bxa3 {[%clk 0:00:10]} 42. Qb8+ {[%clk 0:00:06]}  Bf8 {[%clk 0:00:10]} 43. Qxb3 {[%clk 0:00:06]}  Qc1+ {[%clk 0:00:10]} 44. Kg2 {[%clk 0:00:07]}  Qc2+ {[%clk 0:00:09]} 45. Qxc2 {[%clk 0:00:07]}  Ne3+ {[%clk 0:00:10]} 46. Kf3 {[%clk 0:00:07]}  Nxc2 {[%clk 0:00:10]} 47. Ke2 {[%clk 0:00:08]}  Nxd4+ {[%clk 0:00:10]} 48. Kd3 {[%clk 0:00:09]}  Nf5 {[%clk 0:00:10]} 49. Ke4 {[%clk 0:00:09]}  h5 {[%clk 0:00:10]} 50. h3 {[%clk 0:00:10]}  Nxg3+ {[%clk 0:00:10]} 51. Kf3 {[%clk 0:00:10]}  Nf5 {[%clk 0:00:11]} 52. Kf4 {[%clk 0:00:10]}  Kg7 {[%clk 0:00:12]} 53. Ke5 {[%clk 0:00:11]}  Be7 {[%clk 0:00:12]} 54. h4 {[%clk 0:00:11]}  Bxh4 {[%clk 0:00:11]} 55. Ke4 {[%clk 0:00:10]}  Kf6 {[%clk 0:00:12]} 56. Kf4 {[%clk 0:00:10]}  Bg5+ {[%clk 0:00:12]} 57. Ke4 {[%clk 0:00:10]}  Bh6 {[%clk 0:00:12]} 58. Kf3 {[%clk 0:00:11]}  g5 {[%clk 0:00:13]} 59. Kg2 {[%clk 0:00:10]}  g4 {[%clk 0:00:13]} 60. Kf2 {[%clk 0:00:10]}  e5 {[%clk 0:00:14]} 61. Kg2 {[%clk 0:00:11]}  e4 {[%clk 0:00:14]} 62. Kf1 {[%clk 0:00:12]}  Nd6 {[%clk 0:00:15]} 63. Kg2 {[%clk 0:00:11]}  Nc4 {[%clk 0:00:15]} 0-1


[Site "https://www.chess.com"]

[Event "Titled Tuesday Blitz November 14 Early 2023"]
[White "only_strong_moves"]
[Black "Kamsky, Gata"]
[BlackFideId "2000024"]
[WhiteElo "2504"]
[BlackElo "2896"]
[Result "0-1"]
[Round "1"]
[TimeControl "180+1"]
[Date "2023.11.14"]
[WhiteClock "0:00:00"]
[BlackClock "0:01:13"]
[Board "47"]

1. d4 {[%clk 0:03:00]}  f5 {[%clk 0:02:54]} 2. c4 {[%clk 0:02:59]}  Nf6 {[%clk 0:02:53]} 3. Nc3 {[%clk 0:03:00]}  e6 {[%clk 0:02:53]} 4. g3 {[%clk 0:03:00]}  Bb4 {[%clk 0:02:52]} 5. Bg2 {[%clk 0:03:00]}  O-O {[%clk 0:02:47]} 6. Qb3 {[%clk 0:02:55]}  a5 {[%clk 0:02:46]} 7. d5 {[%clk 0:02:48]}  e5 {[%clk 0:02:34]} 8. d6 {[%clk 0:02:16]}  cxd6 {[%clk 0:02:18]} 9. Bd2 {[%clk 0:01:47]}  Nc6 {[%clk 0:02:05]} 10. Nb5 {[%clk 0:01:38]}  Bxd2+ {[%clk 0:01:40]} 11. Kxd2 {[%clk 0:01:38]}  a4 {[%clk 0:01:36]} 12. Qd3 {[%clk 0:01:33]}  Qa5+ {[%clk 0:01:33]} 13. Qc3 {[%clk 0:01:25]}  Qb6 {[%clk 0:01:32]} 14. e3 {[%clk 0:01:18]}  d5 {[%clk 0:01:30]} 15. Ne2 {[%clk 0:01:00]}  dxc4 {[%clk 0:01:27]} 16. Qxc4+ {[%clk 0:00:59]}  d5 {[%clk 0:01:26]} 17. Bxd5+ {[%clk 0:00:55]}  Kh8 {[%clk 0:01:21]} 18. Ke1 {[%clk 0:00:16]}  Na5 {[%clk 0:01:14]} 19. Qb4 {[%clk 0:00:05]}  Bd7 {[%clk 0:01:13]} 20. Bc4 {[%clk 0:00:00]}  Nxc4 {[%clk 0:01:13]} 0-1


[Site "https://www.chess.com"]

[Event "Titled Tuesday Blitz November 14 Early 2023"]
[White "Henriquez Villagra, Cristobal"]
[Black "a-z30"]
[WhiteFideId "3409350"]
[WhiteElo "2880"]
[BlackElo "2501"]
[Result "1-0"]
[Round "1"]
[TimeControl "180+1"]
[Date "2023.11.14"]
[WhiteClock "0:00:08"]
[BlackClock "0:00:05"]
[Board "52"]

1. e4 {[%clk 0:03:00]}  d6 {[%clk 0:02:58]} 2. d4 {[%clk 0:02:58]}  Nf6 {[%clk 0:02:58]} 3. Nc3 {[%clk 0:02:57]}  g6 {[%clk 0:02:59]} 4. g3 {[%clk 0:02:55]}  Bg7 {[%clk 0:03:00]} 5. Bg2 {[%clk 0:02:56]}  O-O {[%clk 0:03:00]} 6. Nge2 {[%clk 0:02:54]}  Nbd7 {[%clk 0:03:00]} 7. O-O {[%clk 0:02:43]}  Rb8 {[%clk 0:03:01]} 8. a4 {[%clk 0:02:30]}  c5 {[%clk 0:02:51]} 9. d5 {[%clk 0:02:14]}  b6 {[%clk 0:02:48]} 10. Re1 {[%clk 0:01:45]}  a6 {[%clk 0:02:47]} 11. h3 {[%clk 0:01:29]}  b5 {[%clk 0:02:47]} 12. a5 {[%clk 0:01:26]}  Ne8 {[%clk 0:02:31]} 13. Nb1 {[%clk 0:01:26]}  Nc7 {[%clk 0:02:12]} 14. Nf4 {[%clk 0:01:25]}  b4 {[%clk 0:02:00]} 15. Ra2 {[%clk 0:01:25]}  Nb5 {[%clk 0:01:56]} 16. Nd2 {[%clk 0:01:25]}  Nd4 {[%clk 0:01:56]} 17. Ne2 {[%clk 0:01:04]}  Nxe2+ {[%clk 0:01:44]} 18. Rxe2 {[%clk 0:01:02]}  Rb5 {[%clk 0:01:42]} 19. Nc4 {[%clk 0:00:59]}  Ne5 {[%clk 0:01:42]} 20. Nb6 {[%clk 0:00:56]}  Nd7 {[%clk 0:01:21]} 21. Nxc8 {[%clk 0:00:49]}  Qxc8 {[%clk 0:01:20]} 22. Bg5 {[%clk 0:00:48]}  Re8 {[%clk 0:01:11]} 23. Re1 {[%clk 0:00:33]}  Qc7 {[%clk 0:01:10]} 24. Bf1 {[%clk 0:00:34]}  Rxa5 {[%clk 0:01:08]} 25. Qa1 {[%clk 0:00:34]}  Rxa2 {[%clk 0:01:07]} 26. Qxa2 {[%clk 0:00:35]}  a5 {[%clk 0:01:02]} 27. Bb5 {[%clk 0:00:35]}  h6 {[%clk 0:00:57]} 28. Bf4 {[%clk 0:00:33]}  Ra8 {[%clk 0:00:51]} 29. Bc6 {[%clk 0:00:31]}  Ra7 {[%clk 0:00:45]} 30. b3 {[%clk 0:00:30]}  Kh7 {[%clk 0:00:38]} 31. Qb1 {[%clk 0:00:29]}  Ne5 {[%clk 0:00:34]} 32. Bxe5 {[%clk 0:00:29]}  Bxe5 {[%clk 0:00:33]} 33. Qd1 {[%clk 0:00:29]}  c4 {[%clk 0:00:25]} 34. Kg2 {[%clk 0:00:29]}  Qb6 {[%clk 0:00:21]} 35. f4 {[%clk 0:00:29]}  Bc3 {[%clk 0:00:19]} 36. Rf1 {[%clk 0:00:26]}  cxb3 {[%clk 0:00:17]} 37. cxb3 {[%clk 0:00:27]}  Qd4 {[%clk 0:00:17]} 38. Qf3 {[%clk 0:00:27]}  Qd2+ {[%clk 0:00:10]} 39. Rf2 {[%clk 0:00:27]}  Qc1 {[%clk 0:00:11]} 40. h4 {[%clk 0:00:27]}  Bd4 {[%clk 0:00:10]} 41. Rf1 {[%clk 0:00:27]}  Qd2+ {[%clk 0:00:10]} 42. Kh3 {[%clk 0:00:27]}  Qc3 {[%clk 0:00:10]} 43. Qd1 {[%clk 0:00:24]}  a4 {[%clk 0:00:06]} 44. Bxa4 {[%clk 0:00:22]}  Rxa4 {[%clk 0:00:06]} 45. bxa4 {[%clk 0:00:23]}  b3 {[%clk 0:00:07]} 46. Qc1 {[%clk 0:00:17]}  Qb4 {[%clk 0:00:05]} 47. Qb1 {[%clk 0:00:13]}  Qxa4 {[%clk 0:00:05]} 48. h5 {[%clk 0:00:13]}  Kg7 {[%clk 0:00:04]} 49. hxg6 {[%clk 0:00:14]}  fxg6 {[%clk 0:00:04]} 50. Qd3 {[%clk 0:00:14]}  b2 {[%clk 0:00:03]} 51. Rb1 {[%clk 0:00:15]}  Qb4 {[%clk 0:00:03]} 52. Kg2 {[%clk 0:00:15]}  h5 {[%clk 0:00:02]} 53. Kf3 {[%clk 0:00:15]}  Qc3 {[%clk 0:00:02]} 54. Qxc3 {[%clk 0:00:15]}  Bxc3 {[%clk 0:00:03]} 55. g4 {[%clk 0:00:16]}  hxg4+ {[%clk 0:00:02]} 56. Kxg4 {[%clk 0:00:16]}  Kf6 {[%clk 0:00:03]} 57. Kf3 {[%clk 0:00:13]}  g5 {[%clk 0:00:03]} 58. fxg5+ {[%clk 0:00:13]}  Kxg5 {[%clk 0:00:04]} 59. Ke3 {[%clk 0:00:14]}  Kf6 {[%clk 0:00:04]} 60. Rf1+ {[%clk 0:00:14]}  Kg6 {[%clk 0:00:03]} 61. Kd3 {[%clk 0:00:14]}  Be5 {[%clk 0:00:03]} 62. Kc2 {[%clk 0:00:14]}  Bf6 {[%clk 0:00:04]} 63. Rf3 {[%clk 0:00:13]}  Be5 {[%clk 0:00:04]} 64. Rb3 {[%clk 0:00:07]}  Bf6 {[%clk 0:00:05]} 65. Rb7 {[%clk 0:00:07]}  Kf7 {[%clk 0:00:05]} 66. Kd3 {[%clk 0:00:04]}  Be5 {[%clk 0:00:05]} 67. Rb5 {[%clk 0:00:04]}  Bf6 {[%clk 0:00:05]} 68. Ke3 {[%clk 0:00:05]}  Be5 {[%clk 0:00:06]} 69. Kf3 {[%clk 0:00:05]}  Kf6 {[%clk 0:00:06]} 70. Ke3 {[%clk 0:00:06]}  Kg5 {[%clk 0:00:06]} 71. Rb7 {[%clk 0:00:06]}  Kf6 {[%clk 0:00:07]} 72. Kd3 {[%clk 0:00:06]}  Kf7 {[%clk 0:00:07]} 73. Kc2 {[%clk 0:00:06]}  Kf6 {[%clk 0:00:08]} 74. Kb1 {[%clk 0:00:06]}  Kf7 {[%clk 0:00:08]} 75. Kc2 {[%clk 0:00:07]}  Bf6 {[%clk 0:00:09]} 76. Kb1 {[%clk 0:00:07]}  Kg6 {[%clk 0:00:09]} 77. e5 {[%clk 0:00:06]}  dxe5 {[%clk 0:00:08]} 78. Kxb2 {[%clk 0:00:05]}  Kf5 {[%clk 0:00:08]} 79. Kc3 {[%clk 0:00:05]}  Kf4 {[%clk 0:00:08]} 80. Kc4 {[%clk 0:00:05]}  e4 {[%clk 0:00:09]} 81. Rb1 {[%clk 0:00:06]}  Kf3 {[%clk 0:00:09]} 82. Rf1+ {[%clk 0:00:06]}  Ke2 {[%clk 0:00:09]} 83. Rf4 {[%clk 0:00:06]}  e3 {[%clk 0:00:09]} 84. d6 {[%clk 0:00:06]}  exd6 {[%clk 0:00:07]} 85. Rxf6 {[%clk 0:00:07]}  Kd2 {[%clk 0:00:08]} 86. Rxd6+ {[%clk 0:00:07]}  Ke1 {[%clk 0:00:08]} 87. Kd3 {[%clk 0:00:07]}  Kf2 {[%clk 0:00:05]} 88. Rf6+ {[%clk 0:00:08]} 1-0


[Site "https://www.chess.com"]